Cogmind - Beta 13 @@@ ROGUE MODE // 2024.04.03 @ 08:11:44 Player: JackieG Result: Destroyed by G-47 Trooper with Particle Gun Performance ------------- Evolutions (2) 1000 Regions Visited (5) 1000 Robots Destroyed (35) 175 Value Destroyed (944) 944 Prototype IDs (4) 80 Alien Tech Used (0) 0 Bonus (8) 8 TOTAL SCORE: 3207 Bonus ------- High Alert Combat Kills 8 Cogmind --------- Core Integrity 0/550 Matter 280/300 Energy 70/100 System Corruption 0% Temperature Danger (499) Movement Core (400) Ox7 Location -8/Materials Parts ------- > --- POWER (1) -------- (None) > --- PROPULSION (2) --- (None) > --- UTILITY (5) ------ Large Storage Unit Visual Processing Unit Targeting Computer > --- WEAPON (3) ------- Light Assault Rifle Improved Assault Rifle > --- INVENTORY (15) --- Improved Ion Engine Carbon-fiber Leg Core Shielding Small Laser Datajack Mining Laser Great Maul Great Maul Powered Hammer Blade Trap Blade Trap Peak State ------------ > --- POWER ------------ Improved Ion Engine > --- PROPULSION ------- Light Treads Light Treads > --- UTILITY ---------- Large Storage Unit Visual Processing Unit Targeting Computer Medium Armor Plating Medium Armor Plating > --- WEAPON ----------- Powered Hammer Powered Hammer Powered Hammer > --- INVENTORY -------- Light Treads Light Treads Core Shielding Small Laser Particle Cannon Advanced Beam Cannon Light Assault Rifle Improved Assault Rifle Rocket Launcher Datajack Mining Laser Blade Trap Blade Trap Blade Trap Blade Trap [Rating: 26] Favorites ----------- Power Improved Ion Engine Engine Improved Ion Engine Propulsion Light Treads Treads Light Treads Utility Large Storage Unit Device Heat Sink Storage Large Storage Unit Processor Visual Processing Unit Protection Medium Armor Plating Weapon Particle Cannon Energy Gun Medium Laser Energy Cannon Particle Cannon Ballistic Gun Improved Assault Rifle Ballistic Cannon Gauss Cannon Launcher Rocket Launcher Special Weapon Mining Laser Impact Weapon Powered Hammer Build | -11 -10 -10 -9 -9 -8 ------- Run | Yrd Mat Min Mat Min Mat Slots Evolved 4 | . . . 2 . 2 Power . | . . . . . . Propulsion . | . . . . . . Utility 3 | . . . 1 . 2 Weapon 1 | . . . 1 . . Parts Attached 43 | 6 2 3 13 5 14 Power 3 | 1 . . . 1 1 Engine 3 | 1 . . . 1 1 Core . | . . . . . . Reactor . | . . . . . . Propulsion 6 | 2 . . 2 1 1 Treads 6 | 2 . . 2 1 1 Leg . | . . . . . . Wheel . | . . . . . . Hover . | . . . . . . Flight . | . . . . . . Utility 12 | 1 2 . 6 1 2 Device 1 | . . . 1 . . Storage 5 | 1 2 . 2 . . Processor 3 | . . . 2 1 . Hackware . | . . . . . . Protection 3 | . . . 1 . 2 Artifact . | . . . . . . Weapon 22 | 2 . 3 5 2 10 Energy Gun 4 | 1 . 1 2 . . Energy Cannon 4 | . . . 2 . 2 Ballistic Gun 5 | 1 . . 1 1 2 Ballistic Cannon 1 | . . . . . 1 Launcher 3 | . . 2 . . 1 Special Weapon 1 | . . . . 1 . Impact Weapon 4 | . . . . . 4 Slashing Weapon . | . . . . . . Piercing Weapon . | . . . . . . Special Melee Weapon . | . . . . . . Unidentified Prototypes 2 | . . . 2 . . Parts Lost 14 | . . 1 3 . 10 Power 2 | . . 1 . . 1 Propulsion 5 | . . . 2 . 3 Utility 3 | . . . 1 . 2 Weapon 4 | . . . . . 4 Highest Loss Streak 9 | . . 1 2 . 9 To Critical Strikes . | . . . . . . Average Slot Usage (%) 93 | . 99 97 84 92 96 Engine 6 | . 14 11 . 4 8 Treads 21 | . 28 28 20 22 17 Storage 14 | . 27 28 12 11 9 Processor 13 | . . . 10 22 18 Protection 4 | . . . 3 . 15 Energy Gun 4 | . 14 8 7 . . Energy Cannon 9 | . . . 11 22 2 Ballistic Gun 9 | . 14 14 14 10 . Ballistic Cannon 1 | . . . . . 7 Impact Weapon 4 | . . . . . 15 Naked Turns . | . . . . . . Heaviest Build 55 | 13 30 32 34 38 55 Greatest Support 40 | 40 40 40 40 40 40 Greatest Overweight (x) 7 | 3 . . 1 . 7 Average Overweight (x) . | . . . . . 1 Largest Inventory Capacity 25 | 8 15 15 25 15 15 Average Capacity 14 | 7 12 15 15 15 15 Most Carried 15 | 3 4 5 14 15 15 Average Carried 10 | . 2 4 8 14 14 Final Capacity 15 | 8 15 15 15 15 15 Final Carried 15 | . 4 5 14 15 11 Class Distribution -------------------- 46% | Mutant 29% | Skirmisher 15% | Gunner 7% | Tank Dominant Class ---------------- Mutant | -10/Materials Mutant | -10/Mines Skirmisher | -9/Materials Skirmisher | -9/Mines Mutant | -8/Materials Resources | -11 -10 -10 -9 -9 -8 ----------- Run | Yrd Mat Min Mat Min Mat Matter Collected 857 | 220 195 . 290 30 122 Remotely . | . . . . . . Salvage Created 1188 | . 420 23 561 . 184 Parts 82 | . 23 8 40 . 11 Haulers Intercepted 3 | . . . 3 . . Recyclers Shooed . | . . . . . . Parts Field Recycled . | . . . . . . Retrieved Matter . | . . . . . . Parts Self-Destructed . | . . . . . . Prevented . | . . . . . . Kills | -11 -10 -10 -9 -9 -8 ------- Run | Yrd Mat Min Mat Min Mat Combat Hostiles Destroyed 27 | . 8 6 9 . 4 Melee 2 | . . . . . 2 Guns 13 | . 8 . 5 . . Cannons 6 | . . . 4 . 2 AOE 6 | . . 6 . . . Classes Destroyed 10 | . 3 1 3 . 3 Builder 2 | . . . 2 . . Hauler 3 | . . . 3 . . Recycler 1 | . 1 . . . . Watcher 2 | . 1 . 1 . . Swarmer 6 | . . 6 . . . Grunt 17 | . 8 . 8 . 1 Brawler 1 | . . . . . 1 Duelist 1 | . . . . . 1 Sentry 1 | . . . 1 . . Hunter 1 | . . . . . 1 Best Kill Streak 6 | . 3 6 4 . 2 Combat Bots Only 6 | . 2 6 2 . 2 Max Kills in Single Turn 3 | . 1 3 1 . 1 Gunslinging . | . . . . . . Exploded 3 | . . 3 . . . Melee 1 | . . . . . 1 Uniques/NPCs Destroyed . | . . . . . . Combat | -11 -10 -10 -9 -9 -8 -------- Run | Yrd Mat Min Mat Min Mat Hostile Shots Fired 240 | . 46 10 37 . 147 Missed 55 | . 12 2 11 . 30 Damage Taken 2878 | . 384 115 432 . 1947 Core 654 | . 36 22 38 . 558 Absorbed by Shields . | . . . . . . Core Remaining (%) 88 | 100 . 76 . 90 . Volleys Fired 83 | . 35 5 28 10 5 Largest 3 | . 2 2 3 1 3 Hottest 149 | . 70 53 128 100 149 Shots Fired 186 | . 70 11 84 10 11 Gun 131 | . 70 5 56 . . Cannon 38 | . . . 28 . 10 Launcher 7 | . . 6 . . 1 Special 10 | . . . . 10 . Kinetic 83 | . 35 5 40 . 3 Thermal 96 | . 35 . 44 10 7 Explosive 7 | . . 6 . . 1 Electromagnetic . | . . . . . . Robot Hit Streak 12 | . 10 2 12 . 7 Robot Miss Streak 3 | . 3 2 3 . 1 Penetration Max . | . . . . . . Secondary Targets 1 | . 1 . . . . Max Gunslinging Chain 1 | . 1 . . . . Shots Hit Robots 111 | . 48 4 46 . 13 Core Hits 62 | . 21 6 25 . 10 Critical Kills 3 | . . . 1 . 2 Critical Parts Destroyed 1 | . . . 1 . . Critical Strikes 9 | . 5 . 2 . 2 Burn 5 | . 5 . . . . Destroy 2 | . . . 2 . . Smash 2 | . . . . . 2 Melee Attacks 9 | . . . . . 9 Impact 9 | . . . . . 9 Slashing . | . . . . . . Piercing . | . . . . . . Sneak Attacks . | . . . . . . Combat Hostiles . | . . . . . . Follow-up Attacks . | . . . . . . Damage Inflicted 2202 | . 481 330 750 . 641 Guns 798 | . 481 15 302 . . Cannons 600 | . . . 392 . 208 Explosions 552 | . . 315 56 . 181 Melee 252 | . . . . . 252 Ramming . | . . . . . . Kinetic 477 | . 172 15 205 . 85 Thermal 921 | . 309 . 489 . 123 Explosive 552 | . . 315 56 . 181 Electromagnetic . | . . . . . . Impact 252 | . . . . . 252 Slashing . | . . . . . . Piercing . | . . . . . . Highest Corruption 3 | . 3 3 . . . Average Corruption 2 | . 2 3 . . . Corruption Purged . | . . . . . . Corruption Blocked . | . . . . . . Effects 4 | . 1 3 . . . Matter Fused 2 | . . 2 . . . Misfires 1 | . . 1 . . . Alerts 1 | . 1 . . . . Overload Shots . | . . . . . . Overflow Damage 15 | . . 12 1 . 2 Projectiles 1 | . . . 1 . . Explosions 14 | . . 12 . . 2 Melee . | . . . . . . Knockbacks 3 | . . . . . 3 Impact 2 | . . . . . 2 Kinetic 1 | . . . . . 1 Secondary . | . . . . . . Self-Inflicted Damage 204 | . . 55 114 . 35 Shots 4 | . . 2 1 . 1 Rammed . | . . . . . . Targets Rammed . | . . . . . . Kicked . | . . . . . . Crushed . | . . . . . . Highest Temperature 481 | . 193 12 402 36 481 Average Temperature 87 | . 72 3 94 13 259 Received Heat Transfer 1263 | . 213 . 159 . 891 Siege Activations . | . . . . . . Robots Corrupted . | . . . . . . Combat Hostiles . | . . . . . . Parts Fried . | . . . . . . Impact Corruptions . | . . . . . . Robots Melted . | . . . . . . Combat Hostiles . | . . . . . . Parts Melted 1 | . 1 . . . . Heat Transferred 2445 | . 1295 . 928 . 222 Parts Sabotaged . | . . . . . . Parts Stolen . | . . . . . . Parts Stripped . | . . . . . . Power Chain Reactions . | . . . . . . Alert | -11 -10 -10 -9 -9 -8 ------- Run | Yrd Mat Min Mat Min Mat Peak Influence 426 | . 227 239 426 90 140 Initial 92 | . . 30 92 90 . Average 80 | . 104 55 224 41 19 Maximum Alert Level 2 | . 1 1 2 . . Low Security (%) 85 | 100 81 91 38 100 100 Level 1 13 | . 18 8 55 . . Level 2 1 | . . . 5 . . Level 3 . | . . . . . . Level 4 . | . . . . . . Level 5 . | . . . . . . High Security . | . . . . . . Max Security . | . . . . . . Squads Dispatched 6 | . 2 . 2 . 2 Investigation 2 | . 1 . 1 . . Extermination . | . . . . . . Reinforcement 3 | . 1 . 1 . 1 Assault . | . . . . . . Garrison 1 | . . . . . 1 Intercept . | . . . . . . Searches Triggered . | . . . . . . Construction Impeded . | . . . . . . Haulers Reinforced . | . . . . . . Active Scanning Responses . | . . . . . . Cargo Convoy Interrupts . | . . . . . . Stealth | -11 -10 -10 -9 -9 -8 --------- Run | Yrd Mat Min Mat Min Mat Distress Signals 1 | . . . 1 . . Communications Jammed . | . . . . . . Distress Signals . | . . . . . . Times Spotted 54 | . 12 6 14 . 22 Peak Tracking Total 14 | . 4 3 5 . 14 Tactical Retreats 4 | . 1 . 1 . 2 Traps | -11 -10 -10 -9 -9 -8 ------- Run | Yrd Mat Min Mat Min Mat Traps Triggered 2 | . 2 . . . . Indirectly . | . . . . . . Trap Hack Attempts . | . . . . . . Triggered . | . . . . . . Disarmed . | . . . . . . Reprogrammed . | . . . . . . Reused . | . . . . . . Traps Extracted . | . . . . . . Installed . | . . . . . . Triggered . | . . . . . . Most Traps Carried 4 | . . . . 4 4 Machines | -11 -10 -10 -9 -9 -8 ---------- Run | Yrd Mat Min Mat Min Mat Machines Disabled 3 | . . 2 1 . . Max in Single Turn 2 | . . 2 1 . . Machines Repaired . | . . . . . . Machines Dismantled . | . . . . . . Machines Sabotaged . | . . . . . . Overloaded Fab Kills . | . . . . . . Hacking | -11 -10 -10 -9 -9 -8 --------- Run | Yrd Mat Min Mat Min Mat Machines Accessed 7 | . 2 . 3 . 2 Terminals 5 | . 1 . 2 . 2 Fabricators . | . . . . . . Repair Stations . | . . . . . . Recycling Units 2 | . 1 . 1 . . Scanalyzers . | . . . . . . Garrison Access . | . . . . . . Total Hacks 17 | . 5 . 6 . 6 Successful 9 | . 2 . 5 . 2 Failed 8 | . 3 . 1 . 4 Catastrophic . | . . . . . . Database Lockouts . | . . . . . . Manual 3 | . 2 . 1 . . Terminals 15 | . 4 . 5 . 6 Fabricators . | . . . . . . Repair Stations . | . . . . . . Recycling Units 2 | . 1 . 1 . . Scanalyzers . | . . . . . . Garrison Access . | . . . . . . Terminal Hacks 7 | . 1 . 4 . 2 Record 4 | . 1 . 2 . 1 Prototype ID Bank 1 | . . . . . 1 Alert Level 1 | . . . 1 . . Zone Layout 1 | . . . 1 . . Fabricator Hacks . | . . . . . . Repair Station Hacks . | . . . . . . Recycling Unit Hacks . | . . . . . . Scanalyzer . | . . . . . . Garrison Access Hacks . | . . . . . . Unauthorized Hacks 2 | . 1 . 1 . . Terminals . | . . . . . . Fabricators . | . . . . . . Repair Stations . | . . . . . . Recycling Units 2 | . 1 . 1 . . Tunnel 2 | . 1 . 1 . . Scanalyzers . | . . . . . . Garrison Access . | . . . . . . Data Cores Recovered . | . . . . . . Used . | . . . . . . Hacking Detections 4 | . 1 . 1 . 2 Full Trace Events . | . . . . . . Feedback Events . | . . . . . . Feedback Blocked . | . . . . . . Robot Schematics Acquired . | . . . . . . Robots Built . | . . . . . . Authchips . | . . . . . . Time . | . . . . . . Total Robot Build Rating . | . . . . . . Part Schematics Acquired . | . . . . . . Parts Built . | . . . . . . Authchips . | . . . . . . Time . | . . . . . . Total Part Build Rating . | . . . . . . Parts Repaired . | . . . . . . Time . | . . . . . . Parts Recycled . | . . . . . . Recycled Matter . | . . . . . . Retrieved Matter . | . . . . . . Retrieved Components . | . . . . . . Parts Scanalyzed . | . . . . . . Part Schematics Acquired . | . . . . . . Parts Damaged . | . . . . . . Bothacking | -11 -10 -10 -9 -9 -8 ------------ Run | Yrd Mat Min Mat Min Mat Used RIF Installer . | . . . . . . Robots Hacked . | . . . . . . Non-combat . | . . . . . . Combat . | . . . . . . Robot Hacks Applied . | . . . . . . Relay Couplers Released . | . . . . . . Fabnet Peak Effective % . | . . . . . . Robots Rewired . | . . . . . . Allies Hacked . | . . . . . . Hacks Repelled . | . . . . . . Allies | -11 -10 -10 -9 -9 -8 -------- Run | Yrd Mat Min Mat Min Mat Total Allies . | . . . . . . Largest Group . | . . . . . . Highest-Rated Group . | . . . . . . Highest-Rated Ally . | . . . . . . Total Orders . | . . . . . . Ally Attacks . | . . . . . . Total Damage . | . . . . . . Kills . | . . . . . . Allies Corrupted . | . . . . . . Allies Melted . | . . . . . . Intel | -11 -10 -10 -9 -9 -8 ------- Run | Yrd Mat Min Mat Min Mat Robot Analysis Total . | . . . . . . Derelict Logs Recovered 1 | . . . . 1 . Drone Launches . | . . . . . . Drone Recoveries . | . . . . . . Exploration | -11 -10 -10 -9 -9 -8 ------------- Run | Yrd Mat Min Mat Min Mat Turns Passed 2706 | 76 468 132 501 865 664 Spaces Moved 1261 | 42 201 61 222 498 237 Core 10 | 9 . . . . 1 Treads 1251 | 33 201 61 222 498 236 Legs . | . . . . . . Wheels . | . . . . . . Hover . | . . . . . . Flight . | . . . . . . Fastest Speed 50 | 50 160 160 160 160 160 Average Speed 176 | 155 160 160 167 160 240 Slowest Speed 400 | 200 160 160 240 160 400 Overloaded Moves . | . . . . . . Propulsion Burnouts . | . . . . . . Robots Hopped . | . . . . . . Cave-ins Triggered . | . . . . . . Exploration Rate (%) 27 | 4 26 23 16 75 19 Regions Visited 5 Branch Regions 2 Pre-discovered Areas 4 | . 1 . 1 2 . Known Exits Taken . | . . . . . . Unknown Exits Taken 5 | 1 1 1 1 1 . Scrap Searched . | . . . . . . Spaces Dug . | . . . . . . Terrain Destroyed 88 | . . 55 22 2 9 Melee . | . . . . . . Projectile 3 | . . . . 2 1 AOE 85 | . . 55 22 . 8 Terrain Rammed . | . . . . . . Walls Destroyed . | . . . . . . Machines Disabled . | . . . . . . Actions | -11 -10 -10 -9 -9 -8 --------- Run | Yrd Mat Min Mat Min Mat Total 1557 | 52 284 85 292 539 305 Wait 109 | . 43 16 14 8 28 Move 1256 | 41 200 60 221 497 237 Hop . | . . . . . . Pick Up 40 | 5 4 1 14 10 6 Fast Attach 5 | 1 1 . . 1 2 Attach 18 | 5 . . 7 . 6 Detach 2 | . . . 2 . . Swap 20 | . 1 3 6 4 6 Drop 15 | . . . . 9 6 Fire 83 | . 35 5 28 10 5 Melee 9 | . . . . . 9 Ram . | . . . . . . Kick . | . . . . . . Crush . | . . . . . . Escape Stasis . | . . . . . . Rewire . | . . . . . . Trap . | . . . . . . Miscellaneous . | . . . . . . Route ------- -11/Scrapyard -10/Materials -10/Mines -9/Materials -9/Mines -8/Materials History --------- Turn | Location | Event 36 | -11/Scrapyard | Discovered new exit (range 16) 77 | -11/Scrapyard | Entered Materials 316 | -10/Materials | Build established: Mutant 515 | -10/Materials | Discovered new exit (range 8) 545 | -10/Materials | Entered Mines 616 | -10/Mines | Received a Rocket Launcher from a helpful Derelict 649 | -10/Mines | Discovered new exit (range 6) 677 | -10/Mines | Entered Materials 677 | -9/Materials | Evolved 2 slots: Utility x1, Weapon x1 1013 | -9/Materials | Discovered new exit (range 17) 1178 | -9/Materials | Entered Mines 1214 | -9/Mines | Met a Derelict bent on vengeance 1247 | -9/Mines | Build established: Skirmisher 1375 | -9/Mines | Found a hidden stash of uninstalled traps 1709 | -9/Mines | Joined a pair of Derelicts in attacking an 0b10 outpost 1784 | -9/Mines | Discovered new exit (range 8) 1923 | -9/Mines | Excavation squad dispatched 1923 | -9/Mines | A large section of the Mines collapsed 2016 | -9/Mines | Build established: Gunner 2043 | -9/Mines | Entered Materials 2043 | -8/Materials | Evolved 2 slots: Utility x2 2395 | -8/Materials | Build established: Mutant 2671 | -8/Materials | Garrison activated, responded to threat 2700 | -8/Materials | Core integrity fell below 50% 2705 | -8/Materials | Core integrity fell below 20% 2707 | -8/Materials | Destroyed by G-47 Trooper with Particle Gun Last Messages --------------- Gauss Cannon destroyed. The unstable cave ceiling collapses. L-31 Rogue destroyed. R-06 Scavenger collects Lgt. Treads. Lgt. Deuterium Engine destroyed. R-06 Scavenger collects Lgt. Armor Plating. U-05 Engineer lays Concrete. Lgt. Treads destroyed. U-05 Engineer lays Concrete. R-06 Scavenger collects Imp. Aluminum Leg. Particle Cannon destroyed. U-05 Engineer lays Concrete. Acquired 37 matter. U-05 Engineer lays Concrete. Adv. Beam Cannon destroyed. U-05 Engineer lays Concrete. R-06 Scavenger collects Lgt. Treads. U-05 Engineer lays Concrete. Critical hit (Burn: +37). U-05 Engineer lays Concrete. Map ----- +----------------------------------------------------+ | ???????????? ???????????????????????????????????? | | ########## ????????????????????????????????????? | | ???????????????????????????????????????? | | ?????????????????????????????????????????? | | ????????????????????????????????????????????? | | #??????????????????????????????????????????????? | | #????????????????????? ???????????????????????? | | #????????????????????? ???????????????????????? | | #????????????????????? ???????????????????????? | | #????????????????????? ???????????????????????? | | #????????????????????? ?????? ????????????????? | | #????????????? ??????? ????? ????????????????? | | #????????????? ??????? ????#+#????? ??????????? | | #????????????? ?? ? ##### ##### ???????????? | | # #????????????? ????????????? | | # ############## k ?????????????? | | ""?????????????? | | ####### ######## ""?????????????? | | ??????# """ ## # ""?????????????? | | ??????# """ ## & # ! ""?????????????? | | ??????# """ ### """ # ""?????????????? | | ??????# #?# """ u" " """"???????????? | | ??????# #?# """ g "G" """"" #???????? | | ??????# ####### #?# g ggg """ +??????? | | ??#####+#####?# #?# """ u #???????? | | ??# #?# #?# """ r@r g #???????? | | ??# #?# ### """g ! # ######### #???????? | | ??# ### # ##ggg# ??????????????? | | ??# + + #? #? ] T ??????????? | | ??# ### # #? Y; ?? #?????????? | | ??# #?# #######? # ? #?????????? | | ??# #?# #??????? #####??####?????????? | | ??# #?# #??????? #???????????????????? | | ??#######+###?# #???????? ???????????????????? | | ?????????????? ???????? ??????????????????? | | ????????????? ??????? ??????????????????? | | ???????????? ??????! ?????????????????? | | ????????????##+######?????? ##?????????????????? | | ???????????????????????????+###??????????????????? | | ?????????????????????????????????????????????????? | | ?????????????????????????????????????????????????? | | ?????????????????????????????????????????????????? | | ?????????????????????????????????????????????????? | | ?????????????????????????????????????????????????? | | ?????????????????????????????????????????????????? | | ?????????????????????????????????????????????????? | | ?????????????????????????????????????????????????? | | ?????????????????????????????????????????????????? | | ?????????????????????????????????????????????????? | | ?????????????????????????????????????????????????? | +----------------------------------------------------+ Best States ------------- Heat Dissipation 38 Energy Generation 14 Energy Capacity 265 Matter Stores 400 Matter Capacity 400 Sight Range 18 Terrain Scan Density 10 Armor Coverage 450 Evasion (%) 40 Targeting Accuracy 5 Recoil Reduction 2 Item Schematics ----------------- None Robot Schematics ------------------ None Fabricated ------------ Nothing Alien Tech Used ----------------- None Achievements -------------- Maybe Next Time I'll Detach My Launcher Challenges ------------ None Game ------ Seed RelayGatlingFacilitator Manual? 0 Play Time 00:36:00 Cumulative 5.4 hours Start 2024.04.03 @ 07:36:47 End 2024.04.03 @ 08:11:44 Sessions 1 Manual Loads 0 Difficulty Rogue Special Mode None Game No. 4 Rogue 1 Adventurer 3 Explorer 0 Win Type - Total 0 Types 0/0/0/0/0/0/0/0/0 Lore% 6 Gallery% 9 Achievement% 10 Wizard Run 0 Options --------- Layout 1 ASCII 0 Keyboard 0 Movement Arrows Keybinds 0 Fullscreen 1 Font 24/Smallcaps Map View 50x35 Zoom Use 0% Tactical HUD 0 Map Filters NONE Filters NONE Steam 1 RUN: e278cfb7-c415-49d3-9cf7-759b0a745573